[Event "November 21 Late 2023"]
[Site "https://www.chess.com"]
[Date "2023.11.21"]
[Round "11"]
[White "Leiva, Gianmarco"]
[Black "Lebedev, Artem S."]
[Result "1-0"]
[Board "33"]
[TimeControl "180+1"]
[WhiteFideId "3804399"]
[BlackFideId "34272747"]
[WhiteElo "2335"]
[BlackElo "1952"]
[WhiteTeam "PER"]
[BlackTeam "RUS"]
[WhiteClock "0:00:25"]
[BlackClock "0:00:00"]

1. e4 {[%clk 0:02:57]}  e5 {[%clk 0:02:59]} 2. Nf3 {[%clk 0:02:54]}  Nc6 {[%clk 0:02:56]} 3. Bc4 {[%clk 0:02:55]}  Bc5 {[%clk 0:02:54]} 4. d3 {[%clk 0:02:49]}  Nf6 {[%clk 0:02:53]} 5. O-O {[%clk 0:02:48]}  d6 {[%clk 0:02:53]} 6. c3 {[%clk 0:02:42]}  a6 {[%clk 0:02:52]} 7. Bb3 {[%clk 0:02:40]}  Ba7 {[%clk 0:02:52]} 8. Re1 {[%clk 0:02:31]}  h6 {[%clk 0:02:52]} 9. Nbd2 {[%clk 0:02:16]}  O-O {[%clk 0:02:49]} 10. Nf1 {[%clk 0:02:12]}  Be6 {[%clk 0:02:49]} 11. Bxe6 {[%clk 0:02:10]}  fxe6 {[%clk 0:02:49]} 12. Be3 {[%clk 0:02:06]}  Bxe3 {[%clk 0:02:43]} 13. Rxe3 {[%clk 0:02:06]}  d5 {[%clk 0:02:12]} 14. exd5 {[%clk 0:01:47]}  Nxd5 {[%clk 0:02:11]} 15. Re4 {[%clk 0:01:46]}  Nf4 {[%clk 0:02:10]} 16. d4 {[%clk 0:01:45]}  exd4 {[%clk 0:02:09]} 17. Nxd4 {[%clk 0:01:46]}  Nxd4 {[%clk 0:02:01]} 18. Rxd4 {[%clk 0:01:45]}  Qf6 {[%clk 0:01:31]} 19. Qf3 {[%clk 0:01:20]}  Nh3+ {[%clk 0:01:22]} 20. Kh1 {[%clk 0:01:10]}  Nxf2+ {[%clk 0:01:19]} 21. Kg1 {[%clk 0:01:10]}  Nh3+ {[%clk 0:01:17]} 22. Kh1 {[%clk 0:01:09]}  Qxf3 {[%clk 0:01:08]} 23. gxf3 {[%clk 0:01:10]}  Rxf3 {[%clk 0:01:07]} 24. Re1 {[%clk 0:00:56]}  Raf8 {[%clk 0:00:53]} 25. Kg2 {[%clk 0:00:56]}  Ng5 {[%clk 0:00:43]} 26. Rd2 {[%clk 0:00:55]}  e5 {[%clk 0:00:37]} 27. Ng3 {[%clk 0:00:54]}  e4 {[%clk 0:00:08]} 28. Nxe4 {[%clk 0:00:50]}  Nxe4 {[%clk 0:00:08]} 29. Rxe4 {[%clk 0:00:51]}  R3f6 {[%clk 0:00:08]} 30. Rg4 {[%clk 0:00:36]}  R8f7 {[%clk 0:00:06]} 31. a4 {[%clk 0:00:35]}  Kh7 {[%clk 0:00:07]} 32. a5 {[%clk 0:00:36]}  Rf5 {[%clk 0:00:06]} 33. b4 {[%clk 0:00:33]}  Rf3 {[%clk 0:00:05]} 34. Rc4 {[%clk 0:00:33]}  R3f5 {[%clk 0:00:04]} 35. Rg4 {[%clk 0:00:25]}  h5 {[%clk 0:00:04]} 36. Rg3 {[%clk 0:00:25]}  h4 {[%clk 0:00:03]} 37. Rg4 {[%clk 0:00:24]}  g5 {[%clk 0:00:03]} 38. Rgd4 {[%clk 0:00:23]}  Kg6 {[%clk 0:00:02]} 39. Rd7 {[%clk 0:00:21]}  g4 {[%clk 0:00:02]} 40. Rxf7 {[%clk 0:00:21]}  Rxf7 {[%clk 0:00:02]} 41. Rd5 {[%clk 0:00:21]}  h3+ {[%clk 0:00:01]} 42. Kg3 {[%clk 0:00:21]}  Rf3+ {[%clk 0:00:02]} 43. Kxg4 {[%clk 0:00:21]}  Rxc3 {[%clk 0:00:02]} 44. Rc5 {[%clk 0:00:22]}  Rxc5 {[%clk 0:00:02]} 45. bxc5 {[%clk 0:00:22]}  Kf6 {[%clk 0:00:02]} 46. Kxh3 {[%clk 0:00:23]}  Ke5 {[%clk 0:00:02]} 47. Kg4 {[%clk 0:00:24]}  Kd5 {[%clk 0:00:02]} 48. h4 {[%clk 0:00:24]}  Kxc5 {[%clk 0:00:00]} 49. h5 {[%clk 0:00:25]} 1-0

[Event "November 21 Late 2023"]
[Site "https://www.chess.com"]
[Date "2023.11.21"]
[Round "11"]
[White "jactorres"]
[Black "Van Dael, Siem"]
[Result "0-1"]
[Board "35"]
[TimeControl "180+1"]
[BlackFideId "1049771"]
[WhiteElo "2464"]
[BlackElo "2252"]
[BlackTeam "NED"]
[WhiteClock "0:00:46"]
[BlackClock "0:01:06"]

1. e4 {[%clk 0:02:57]}  c5 {[%clk 0:02:53]} 2. Nf3 {[%clk 0:02:57]}  d6 {[%clk 0:02:53]} 3. d4 {[%clk 0:02:57]}  cxd4 {[%clk 0:02:54]} 4. Nxd4 {[%clk 0:02:58]}  Nf6 {[%clk 0:02:55]} 5. Nc3 {[%clk 0:02:58]}  a6 {[%clk 0:02:55]} 6. Be2 {[%clk 0:02:58]}  g6 {[%clk 0:02:51]} 7. h4 {[%clk 0:02:50]}  h5 {[%clk 0:02:47]} 8. Bg5 {[%clk 0:02:49]}  Bg7 {[%clk 0:02:47]} 9. Qd2 {[%clk 0:02:48]}  Nc6 {[%clk 0:02:44]} 10. Nb3 {[%clk 0:02:36]}  Be6 {[%clk 0:02:34]} 11. O-O-O {[%clk 0:02:24]}  Rc8 {[%clk 0:02:26]} 12. Kb1 {[%clk 0:02:24]}  b5 {[%clk 0:02:15]} 13. f3 {[%clk 0:02:23]}  Ne5 {[%clk 0:02:09]} 14. Nd5 {[%clk 0:02:14]}  Nxd5 {[%clk 0:02:04]} 15. exd5 {[%clk 0:02:13]}  Bf5 {[%clk 0:02:04]} 16. Nd4 {[%clk 0:02:10]}  Qd7 {[%clk 0:02:00]} 17. Rhe1 {[%clk 0:01:54]}  O-O {[%clk 0:01:44]} 18. f4 {[%clk 0:01:39]}  Nc4 {[%clk 0:01:28]} 19. Bxc4 {[%clk 0:01:32]}  Rxc4 {[%clk 0:01:29]} 20. Nxf5 {[%clk 0:01:33]}  Qxf5 {[%clk 0:01:29]} 21. Bxe7 {[%clk 0:01:24]}  Rfc8 {[%clk 0:01:26]} 22. Rc1 {[%clk 0:01:16]}  Rd4 {[%clk 0:01:18]} 23. Qa5 {[%clk 0:01:06]}  Qxd5 {[%clk 0:01:14]} 24. f5 {[%clk 0:00:50]}  Ra4 {[%clk 0:01:07]} 25. c4 {[%clk 0:00:46]}  Qd3+ {[%clk 0:01:06]} 0-1

[Event "November 21 Late 2023"]
[Site "https://www.chess.com"]
[Date "2023.11.21"]
[Round "11"]
[White "Estrategia_vs_Tactica"]
[Black "Musovic, Armin"]
[Result "0-1"]
[Board "38"]
[TimeControl "180+1"]
[BlackFideId "939935"]
[WhiteElo "2374"]
[BlackElo "2322"]
[BlackTeam "MNE"]
[WhiteClock "0:00:19"]
[BlackClock "0:00:58"]

1. d4 {[%clk 0:03:00]}  d5 {[%clk 0:02:56]} 2. Nf3 {[%clk 0:03:01]}  Nf6 {[%clk 0:02:56]} 3. g3 {[%clk 0:03:01]}  g6 {[%clk 0:02:55]} 4. Bg2 {[%clk 0:03:01]}  Bg7 {[%clk 0:02:56]} 5. c4 {[%clk 0:03:01]}  c5 {[%clk 0:02:56]} 6. O-O {[%clk 0:02:59]}  O-O {[%clk 0:02:55]} 7. dxc5 {[%clk 0:02:58]}  dxc4 {[%clk 0:02:53]} 8. Na3 {[%clk 0:02:58]}  Qc7 {[%clk 0:02:44]} 9. Nxc4 {[%clk 0:02:56]}  Rd8 {[%clk 0:02:38]} 10. Bf4 {[%clk 0:02:41]}  Rxd1 {[%clk 0:02:23]} 11. Bxc7 {[%clk 0:02:40]}  Rxa1 {[%clk 0:02:24]} 12. Rxa1 {[%clk 0:02:39]}  Na6 {[%clk 0:02:23]} 13. Bf4 {[%clk 0:02:21]}  Nxc5 {[%clk 0:02:18]} 14. Nfe5 {[%clk 0:02:21]}  Be6 {[%clk 0:02:07]} 15. Bxb7 {[%clk 0:02:16]}  Nxb7 {[%clk 0:02:06]} 16. b3 {[%clk 0:02:06]}  Nd5 {[%clk 0:02:04]} 17. Bd2 {[%clk 0:02:04]}  Nb6 {[%clk 0:02:02]} 18. Rc1 {[%clk 0:02:00]}  Nxc4 {[%clk 0:02:00]} 19. Nxc4 {[%clk 0:02:00]}  Rc8 {[%clk 0:02:00]} 20. Be3 {[%clk 0:01:55]}  Nd6 {[%clk 0:01:41]} 21. Nxd6 {[%clk 0:01:47]}  Rxc1+ {[%clk 0:01:42]} 22. Bxc1 {[%clk 0:01:47]}  exd6 {[%clk 0:01:42]} 23. Bf4 {[%clk 0:01:45]}  Be5 {[%clk 0:01:33]} 24. Be3 {[%clk 0:01:38]}  a6 {[%clk 0:01:32]} 25. Bb6 {[%clk 0:01:36]}  Bc3 {[%clk 0:01:26]} 26. f4 {[%clk 0:01:30]}  Bf5 {[%clk 0:01:22]} 27. Kf2 {[%clk 0:01:27]}  Bd2 {[%clk 0:01:19]} 28. e3 {[%clk 0:01:15]}  Bd3 {[%clk 0:01:18]} 29. a3 {[%clk 0:01:07]}  f5 {[%clk 0:01:15]} 30. Bc7 {[%clk 0:01:05]}  d5 {[%clk 0:01:11]} 31. h3 {[%clk 0:00:53]}  Bc2 {[%clk 0:01:11]} 32. b4 {[%clk 0:00:49]}  Bc1 {[%clk 0:01:11]} 33. Ke2 {[%clk 0:00:46]}  Bxa3 {[%clk 0:01:08]} 34. Kd2 {[%clk 0:00:42]}  Be4 {[%clk 0:01:08]} 35. Kc3 {[%clk 0:00:42]}  Kf7 {[%clk 0:01:06]} 36. g4 {[%clk 0:00:42]}  fxg4 {[%clk 0:01:04]} 37. hxg4 {[%clk 0:00:43]}  h5 {[%clk 0:01:04]} 38. gxh5 {[%clk 0:00:42]}  gxh5 {[%clk 0:01:05]} 39. Bd8 {[%clk 0:00:28]}  Ke6 {[%clk 0:00:59]} 40. Kb3 {[%clk 0:00:23]}  Bc1 {[%clk 0:00:59]} 41. Ka4 {[%clk 0:00:23]}  Bxe3 {[%clk 0:00:57]} 42. Ka5 {[%clk 0:00:19]}  Bd3 {[%clk 0:00:58]} 0-1

[Event "November 21 Late 2023"]
[Site "https://www.chess.com"]
[Date "2023.11.21"]
[Round "11"]
[White "Goltsev, Dmitry"]
[Black "Garrido, Denis"]
[Result "0-1"]
[Board "39"]
[TimeControl "180+1"]
[WhiteFideId "24176710"]
[BlackFideId "601217"]
[WhiteElo "2370"]
[BlackElo "2409"]
[WhiteTeam "RUS"]
[BlackTeam "FRA"]
[WhiteClock "0:00:01"]
[BlackClock "0:01:16"]

1. e4 {[%clk 0:02:50]}  e5 {[%clk 0:02:59]} 2. Nf3 {[%clk 0:02:50]}  Nc6 {[%clk 0:02:59]} 3. Bb5 {[%clk 0:02:50]}  a6 {[%clk 0:02:59]} 4. Ba4 {[%clk 0:02:50]}  Nf6 {[%clk 0:02:59]} 5. O-O {[%clk 0:02:50]}  b5 {[%clk 0:03:00]} 6. Bb3 {[%clk 0:02:50]}  Bc5 {[%clk 0:03:01]} 7. Nxe5 {[%clk 0:02:50]}  Nxe5 {[%clk 0:03:00]} 8. d4 {[%clk 0:02:51]}  Bxd4 {[%clk 0:03:01]} 9. Qxd4 {[%clk 0:02:52]}  d6 {[%clk 0:03:01]} 10. c3 {[%clk 0:02:49]}  O-O {[%clk 0:02:58]} 11. Bg5 {[%clk 0:02:48]}  c5 {[%clk 0:02:51]} 12. Qd1 {[%clk 0:02:47]}  h6 {[%clk 0:02:47]} 13. Bh4 {[%clk 0:02:45]}  Ng6 {[%clk 0:02:40]} 14. Bg3 {[%clk 0:02:42]}  Nxe4 {[%clk 0:02:34]} 15. Bd5 {[%clk 0:02:02]}  Nxg3 {[%clk 0:02:33]} 16. fxg3 {[%clk 0:02:02]}  Ra7 {[%clk 0:02:28]} 17. Qd3 {[%clk 0:01:54]}  Ne5 {[%clk 0:02:27]} 18. Qe4 {[%clk 0:01:52]}  Re8 {[%clk 0:02:21]} 19. Nd2 {[%clk 0:01:47]}  Be6 {[%clk 0:02:20]} 20. Rae1 {[%clk 0:01:45]}  Qg5 {[%clk 0:02:17]} 21. Nf3 {[%clk 0:01:37]}  Nxf3+ {[%clk 0:02:14]} 22. Rxf3 {[%clk 0:01:38]}  Rae7 {[%clk 0:02:11]} 23. Bc6 {[%clk 0:00:50]}  Bd7 {[%clk 0:01:35]} 24. h4 {[%clk 0:00:06]}  Rxe4 {[%clk 0:01:28]} 25. Rxe4 {[%clk 0:00:05]}  Qc1+ {[%clk 0:01:27]} 26. Rf1 {[%clk 0:00:05]}  Rxe4 {[%clk 0:01:22]} 27. Bxe4 {[%clk 0:00:02]}  Qe3+ {[%clk 0:01:21]} 28. Kh2 {[%clk 0:00:01]}  Qxe4 {[%clk 0:01:21]} 29. c4 {[%clk 0:00:02]}  bxc4 {[%clk 0:01:19]} 30. Rg1 {[%clk 0:00:03]}  Bc6 {[%clk 0:01:19]} 31. b4 {[%clk 0:00:04]}  cxb3 {[%clk 0:01:19]} 32. a4 {[%clk 0:00:05]}  b2 {[%clk 0:01:19]} 33. a5 {[%clk 0:00:06]}  b1=Q {[%clk 0:01:18]} 34. g4 {[%clk 0:00:01]}  Qxg1+ {[%clk 0:01:16]} 35. Kxg1 {[%clk 0:00:01]}  Qxg2# {[%clk 0:01:16]} 0-1

[Event "November 21 Late 2023"]
[Site "https://www.chess.com"]
[Date "2023.11.21"]
[Round "11"]
[White "Ambartsumova, Karina"]
[Black "The_Straightforward_Rook"]
[Result "1-0"]
[Board "40"]
[TimeControl "180+1"]
[WhiteFideId "4166299"]
[WhiteElo "2240"]
[BlackElo "2527"]
[WhiteTeam "RUS"]
[WhiteClock "0:00:10"]
[BlackClock "0:00:00"]

1. d4 {[%clk 0:03:00]}  Nf6 {[%clk 0:02:54]} 2. c4 {[%clk 0:03:00]}  e6 {[%clk 0:02:52]} 3. Nc3 {[%clk 0:03:00]}  Bb4 {[%clk 0:02:51]} 4. Qc2 {[%clk 0:02:59]}  O-O {[%clk 0:02:50]} 5. Nf3 {[%clk 0:02:57]}  c5 {[%clk 0:02:48]} 6. a3 {[%clk 0:02:56]}  Bxc3+ {[%clk 0:02:31]} 7. Qxc3 {[%clk 0:02:54]}  cxd4 {[%clk 0:02:19]} 8. Nxd4 {[%clk 0:02:54]}  d5 {[%clk 0:02:18]} 9. e3 {[%clk 0:02:41]}  Nc6 {[%clk 0:02:11]} 10. Nxc6 {[%clk 0:02:29]}  bxc6 {[%clk 0:02:12]} 11. Be2 {[%clk 0:02:23]}  Rb8 {[%clk 0:02:07]} 12. O-O {[%clk 0:02:22]}  Ne4 {[%clk 0:02:06]} 13. Qc2 {[%clk 0:02:21]}  e5 {[%clk 0:02:00]} 14. Bd3 {[%clk 0:02:01]}  f5 {[%clk 0:01:53]} 15. b4 {[%clk 0:01:43]}  Be6 {[%clk 0:01:49]} 16. Bb2 {[%clk 0:01:41]}  Qc7 {[%clk 0:00:58]} 17. cxd5 {[%clk 0:01:37]}  Bxd5 {[%clk 0:00:58]} 18. Rac1 {[%clk 0:01:37]}  Rbe8 {[%clk 0:00:54]} 19. f3 {[%clk 0:01:23]}  Nf6 {[%clk 0:00:43]} 20. Bxf5 {[%clk 0:01:20]}  Qb6 {[%clk 0:00:36]} 21. Qc3 {[%clk 0:01:14]}  e4 {[%clk 0:00:31]} 22. fxe4 {[%clk 0:01:00]}  Bxe4 {[%clk 0:00:32]} 23. Bxe4 {[%clk 0:01:00]}  Rxe4 {[%clk 0:00:32]} 24. Qxc6 {[%clk 0:00:57]}  Qxe3+ {[%clk 0:00:26]} 25. Kh1 {[%clk 0:00:58]}  Rh4 {[%clk 0:00:20]} 26. Bxf6 {[%clk 0:00:51]}  gxf6 {[%clk 0:00:21]} 27. Rce1 {[%clk 0:00:20]}  Qg3 {[%clk 0:00:18]} 28. h3 {[%clk 0:00:20]}  Kh8 {[%clk 0:00:14]} 29. Qf3 {[%clk 0:00:19]}  Rg8 {[%clk 0:00:12]} 30. Qxg3 {[%clk 0:00:19]}  Rxg3 {[%clk 0:00:13]} 31. Re8+ {[%clk 0:00:16]}  Kg7 {[%clk 0:00:12]} 32. Re7+ {[%clk 0:00:17]}  Kg6 {[%clk 0:00:13]} 33. Rxa7 {[%clk 0:00:17]}  Rb3 {[%clk 0:00:13]} 34. Kh2 {[%clk 0:00:15]}  Rc4 {[%clk 0:00:12]} 35. Rf2 {[%clk 0:00:15]}  Rcc3 {[%clk 0:00:12]} 36. Ra6 {[%clk 0:00:15]}  Rxa3 {[%clk 0:00:11]} 37. Rfxf6+ {[%clk 0:00:14]}  Kg7 {[%clk 0:00:11]} 38. Rxa3 {[%clk 0:00:14]}  Rxa3 {[%clk 0:00:11]} 39. Rb6 {[%clk 0:00:14]}  Rb3 {[%clk 0:00:12]} 40. b5 {[%clk 0:00:14]}  Rb2 {[%clk 0:00:12]} 41. Rb7+ {[%clk 0:00:14]}  Kg8 {[%clk 0:00:12]} 42. Kg3 {[%clk 0:00:14]}  Rb3+ {[%clk 0:00:12]} 43. Kf4 {[%clk 0:00:14]}  Rb2 {[%clk 0:00:12]} 44. g4 {[%clk 0:00:14]}  Rb4+ {[%clk 0:00:12]} 45. Kg5 {[%clk 0:00:14]}  Rb2 {[%clk 0:00:12]} 46. b6 {[%clk 0:00:14]}  Rb1 {[%clk 0:00:10]} 47. h4 {[%clk 0:00:14]}  Rb2 {[%clk 0:00:10]} 48. Kh6 {[%clk 0:00:14]}  Rb4 {[%clk 0:00:08]} 49. Rg7+ {[%clk 0:00:11]}  Kf8 {[%clk 0:00:05]} 50. Kxh7 {[%clk 0:00:10]}  Rxb6 {[%clk 0:00:05]} 51. h5 {[%clk 0:00:10]}  Rb4 {[%clk 0:00:05]} 52. g5 {[%clk 0:00:10]}  Rh4 {[%clk 0:00:04]} 53. h6 {[%clk 0:00:10]}  Rd4 {[%clk 0:00:04]} 54. Rg8+ {[%clk 0:00:09]}  Kf7 {[%clk 0:00:03]} 55. g6+ {[%clk 0:00:09]}  Kf6 {[%clk 0:00:04]} 56. Rf8+ {[%clk 0:00:10]}  Ke7 {[%clk 0:00:00]} 57. g7 {[%clk 0:00:10]} 1-0

[Event "November 21 Late 2023"]
[Site "https://www.chess.com"]
[Date "2023.11.21"]
[Round "11"]
[White "Silva Lucena, Cristian"]
[Black "Zarnicki, Pablo"]
[Result "1/2-1/2"]
[Board "42"]
[TimeControl "180+1"]
[WhiteFideId "2232588"]
[BlackFideId "100137"]
[WhiteElo "2248"]
[BlackElo "2468"]
[WhiteTeam "ESP"]
[BlackTeam "ARG"]
[WhiteClock "0:00:47"]
[BlackClock "0:01:21"]

1. e4 {[%clk 0:03:00]}  d6 {[%clk 0:02:51]} 2. d4 {[%clk 0:03:00]}  Nf6 {[%clk 0:02:51]} 3. Nc3 {[%clk 0:02:59]}  c6 {[%clk 0:02:51]} 4. f4 {[%clk 0:02:57]}  Qa5 {[%clk 0:02:49]} 5. Bd2 {[%clk 0:02:50]}  e5 {[%clk 0:02:48]} 6. fxe5 {[%clk 0:02:50]}  dxe5 {[%clk 0:02:49]} 7. Nd5 {[%clk 0:02:50]}  Qd8 {[%clk 0:02:48]} 8. Nxf6+ {[%clk 0:02:50]}  Qxf6 {[%clk 0:02:48]} 9. Nf3 {[%clk 0:02:51]}  exd4 {[%clk 0:02:45]} 10. Bc4 {[%clk 0:02:51]}  Be6 {[%clk 0:02:35]} 11. Bxe6 {[%clk 0:02:43]}  Qxe6 {[%clk 0:02:36]} 12. O-O {[%clk 0:02:42]}  Be7 {[%clk 0:02:35]} 13. Nxd4 {[%clk 0:02:39]}  Bc5 {[%clk 0:02:33]} 14. Bc3 {[%clk 0:02:36]}  O-O {[%clk 0:02:30]} 15. Kh1 {[%clk 0:02:25]}  Bxd4 {[%clk 0:02:31]} 16. Qxd4 {[%clk 0:02:24]}  f6 {[%clk 0:02:31]} 17. e5 {[%clk 0:02:17]}  f5 {[%clk 0:02:26]} 18. Rad1 {[%clk 0:02:17]}  Na6 {[%clk 0:02:25]} 19. Qd7 {[%clk 0:02:12]}  Nc5 {[%clk 0:02:21]} 20. Qxe6+ {[%clk 0:02:10]}  Nxe6 {[%clk 0:02:22]} 21. Rd7 {[%clk 0:02:05]}  Nc5 {[%clk 0:02:17]} 22. Re7 {[%clk 0:01:59]}  Rf7 {[%clk 0:02:16]} 23. Rxf7 {[%clk 0:01:57]}  Kxf7 {[%clk 0:02:17]} 24. Rxf5+ {[%clk 0:01:56]}  Ke6 {[%clk 0:02:17]} 25. Rf4 {[%clk 0:01:52]}  Rd8 {[%clk 0:02:10]} 26. h4 {[%clk 0:01:48]}  b5 {[%clk 0:02:00]} 27. Rg4 {[%clk 0:01:46]}  g6 {[%clk 0:01:59]} 28. Rf4 {[%clk 0:01:47]}  Na4 {[%clk 0:01:53]} 29. Rf6+ {[%clk 0:01:45]}  Kd5 {[%clk 0:01:53]} 30. Rf7 {[%clk 0:01:42]}  Nxc3 {[%clk 0:01:50]} 31. bxc3 {[%clk 0:01:42]}  Kxe5 {[%clk 0:01:48]} 32. Rxh7 {[%clk 0:01:40]}  Rd2 {[%clk 0:01:48]} 33. Rxa7 {[%clk 0:01:36]}  Rxc2 {[%clk 0:01:48]} 34. a4 {[%clk 0:01:24]}  Ra2 {[%clk 0:01:46]} 35. Rc7 {[%clk 0:01:18]}  bxa4 {[%clk 0:01:44]} 36. Rxc6 {[%clk 0:01:18]}  Kf5 {[%clk 0:01:42]} 37. Kh2 {[%clk 0:01:18]}  a3 {[%clk 0:01:43]} 38. Ra6 {[%clk 0:01:16]}  Ra1 {[%clk 0:01:40]} 39. c4 {[%clk 0:01:15]}  a2 {[%clk 0:01:38]} 40. c5 {[%clk 0:01:16]}  Ke5 {[%clk 0:01:38]} 41. g4 {[%clk 0:01:06]}  Kf4 {[%clk 0:01:26]} 42. h5 {[%clk 0:01:05]}  gxh5 {[%clk 0:01:26]} 43. gxh5 {[%clk 0:01:06]}  Rc1 {[%clk 0:01:26]} 44. Rxa2 {[%clk 0:01:02]}  Rxc5 {[%clk 0:01:25]} 45. Ra4+ {[%clk 0:00:53]}  Kg5 {[%clk 0:01:23]} 46. Ra8 {[%clk 0:00:47]}  Kxh5 {[%clk 0:01:21]} 1/2-1/2

[Event "November 21 Late 2023"]
[Site "https://www.chess.com"]
[Date "2023.11.21"]
[Round "11"]
[White "elmusmolamas"]
[Black "Przybylski, Wojciech"]
[Result "1/2-1/2"]
[Board "43"]
[TimeControl "180+1"]
[BlackFideId "1117599"]
[WhiteElo "2585"]
[BlackElo "2203"]
[BlackTeam "POL"]
[WhiteClock "0:00:07"]
[BlackClock "0:00:06"]

1. e4 {[%clk 0:03:00]}  c5 {[%clk 0:02:54]} 2. Nf3 {[%clk 0:02:59]}  e6 {[%clk 0:02:54]} 3. g3 {[%clk 0:02:56]}  Nf6 {[%clk 0:02:53]} 4. Nc3 {[%clk 0:02:55]}  Nc6 {[%clk 0:02:52]} 5. Bg2 {[%clk 0:02:55]}  d6 {[%clk 0:02:51]} 6. O-O {[%clk 0:02:54]}  Be7 {[%clk 0:02:52]} 7. d4 {[%clk 0:02:54]}  cxd4 {[%clk 0:02:52]} 8. Nxd4 {[%clk 0:02:55]}  Bd7 {[%clk 0:02:51]} 9. Be3 {[%clk 0:02:56]}  a6 {[%clk 0:02:50]} 10. h3 {[%clk 0:02:54]}  O-O {[%clk 0:02:49]} 11. a4 {[%clk 0:02:53]}  Qc7 {[%clk 0:02:46]} 12. Qe2 {[%clk 0:02:52]}  Rfe8 {[%clk 0:02:43]} 13. Rfd1 {[%clk 0:02:52]}  Rac8 {[%clk 0:02:34]} 14. Nxc6 {[%clk 0:02:49]}  Bxc6 {[%clk 0:02:34]} 15. Bf4 {[%clk 0:02:45]}  Nd7 {[%clk 0:02:19]} 16. Nb5 {[%clk 0:02:24]}  axb5 {[%clk 0:01:59]} 17. axb5 {[%clk 0:02:25]}  Ne5 {[%clk 0:01:52]} 18. bxc6 {[%clk 0:02:23]}  bxc6 {[%clk 0:01:51]} 19. b3 {[%clk 0:02:12]}  Bf6 {[%clk 0:01:48]} 20. Ra6 {[%clk 0:02:08]}  h6 {[%clk 0:01:40]} 21. Be3 {[%clk 0:02:08]}  c5 {[%clk 0:01:36]} 22. Raxd6 {[%clk 0:02:02]}  Be7 {[%clk 0:01:23]} 23. Ra6 {[%clk 0:01:59]}  Nc6 {[%clk 0:01:21]} 24. e5 {[%clk 0:01:48]}  Nb4 {[%clk 0:01:04]} 25. Ra4 {[%clk 0:01:26]}  Qxe5 {[%clk 0:01:03]} 26. Qg4 {[%clk 0:01:22]}  Nxc2 {[%clk 0:00:36]} 27. Bxh6 {[%clk 0:01:15]}  Nd4 {[%clk 0:00:33]} 28. Be3 {[%clk 0:00:56]}  f5 {[%clk 0:00:20]} 29. Qg6 {[%clk 0:00:49]}  Nxb3 {[%clk 0:00:19]} 30. Bf4 {[%clk 0:00:43]}  Qf6 {[%clk 0:00:19]} 31. Qh5 {[%clk 0:00:37]}  Nd4 {[%clk 0:00:19]} 32. Re1 {[%clk 0:00:35]}  g6 {[%clk 0:00:16]} 33. Qh6 {[%clk 0:00:29]}  Bf8 {[%clk 0:00:17]} 34. Bg5 {[%clk 0:00:22]}  Bxh6 {[%clk 0:00:12]} 35. Bxf6 {[%clk 0:00:22]}  Bg7 {[%clk 0:00:12]} 36. Bxg7 {[%clk 0:00:14]}  Kxg7 {[%clk 0:00:12]} 37. f4 {[%clk 0:00:12]}  Rc7 {[%clk 0:00:11]} 38. Kf2 {[%clk 0:00:11]}  Kf6 {[%clk 0:00:11]} 39. Rc1 {[%clk 0:00:12]}  Rd8 {[%clk 0:00:10]} 40. g4 {[%clk 0:00:10]}  g5 {[%clk 0:00:10]} 41. gxf5 {[%clk 0:00:08]}  Kxf5 {[%clk 0:00:08]} 42. fxg5 {[%clk 0:00:08]}  Kxg5 {[%clk 0:00:09]} 43. Ke3 {[%clk 0:00:06]}  Kf5 {[%clk 0:00:08]} 44. Be4+ {[%clk 0:00:06]}  Ke5 {[%clk 0:00:09]} 45. Ra5 {[%clk 0:00:06]}  Kd6 {[%clk 0:00:08]} 46. Ra6+ {[%clk 0:00:04]}  Ke5 {[%clk 0:00:08]} 47. Ra5 {[%clk 0:00:04]}  Rdc8 {[%clk 0:00:08]} 48. Rc4 {[%clk 0:00:03]}  Nf5+ {[%clk 0:00:06]} 49. Bxf5 {[%clk 0:00:03]}  exf5 {[%clk 0:00:06]} 50. h4 {[%clk 0:00:03]}  Kd5 {[%clk 0:00:06]} 51. Rc1 {[%clk 0:00:02]}  Re8+ {[%clk 0:00:06]} 52. Kf4 {[%clk 0:00:03]}  Rh8 {[%clk 0:00:05]} 53. Kxf5 {[%clk 0:00:02]}  Rxh4 {[%clk 0:00:05]} 54. Rd1+ {[%clk 0:00:02]}  Rd4 {[%clk 0:00:05]} 55. Rc1 {[%clk 0:00:02]}  Rd2 {[%clk 0:00:05]} 56. Kf4 {[%clk 0:00:02]}  Rd3 {[%clk 0:00:05]} 57. Kg4 {[%clk 0:00:02]}  Kd4 {[%clk 0:00:05]} 58. Kf4 {[%clk 0:00:02]}  c4 {[%clk 0:00:05]} 59. Ra8 {[%clk 0:00:02]}  Rd7 {[%clk 0:00:04]} 60. Rc8 {[%clk 0:00:02]}  c3 {[%clk 0:00:05]} 61. Kf5 {[%clk 0:00:01]}  Rd5+ {[%clk 0:00:05]} 62. Ke6 {[%clk 0:00:02]}  Re5+ {[%clk 0:00:04]} 63. Kf6 {[%clk 0:00:03]}  Rd5 {[%clk 0:00:05]} 64. Ke6 {[%clk 0:00:03]}  Re3+ {[%clk 0:00:05]} 65. Kf6 {[%clk 0:00:03]}  Rf3+ {[%clk 0:00:06]} 66. Ke6 {[%clk 0:00:03]}  Rf2 {[%clk 0:00:05]} 67. R8xc3 {[%clk 0:00:02]}  Re2+ {[%clk 0:00:06]} 68. Kf6 {[%clk 0:00:02]}  Rf2+ {[%clk 0:00:06]} 69. Kg6 {[%clk 0:00:03]}  Rg2+ {[%clk 0:00:06]} 70. Kf6 {[%clk 0:00:03]}  Rf2+ {[%clk 0:00:06]} 71. Kg6 {[%clk 0:00:03]}  Rd6+ {[%clk 0:00:06]} 72. Kg5 {[%clk 0:00:03]}  Re6 {[%clk 0:00:05]} 73. Rc4+ {[%clk 0:00:03]}  Kd3 {[%clk 0:00:06]} 74. R1c3+ {[%clk 0:00:03]}  Ke2 {[%clk 0:00:06]} 75. Rc2+ {[%clk 0:00:04]}  Kf1 {[%clk 0:00:06]} 76. Rxf2+ {[%clk 0:00:05]}  Kxf2 {[%clk 0:00:06]} 77. Rf4+ {[%clk 0:00:05]}  Ke3 {[%clk 0:00:06]} 78. Rf6 {[%clk 0:00:06]}  Rxf6 {[%clk 0:00:06]} 79. Kxf6 {[%clk 0:00:07]} 1/2-1/2